{"text_format":"3","workbook":"xlsx","n_sheets":1,"sheets":["Lista de estoque"],"not_rendered":{"images":2,"defined_names":3},"read":"whole","date_system":"1900"}

{"sheet":"Lista de estoque","index":0,"n_rows":30,"n_cols":13,"rows_kept":30}
[{"$nulls":12}," "]
[null,"Lista de estoque"]
[null,"Patheros Labs"]
[{"$nulls":8},"Realçar itens para nova encomenda?",null,null,"Sim"]
[null,"Para reordenar","ID de estoque","Nome","Descrição","Preço unitário","Quantidade \nem estoque","Valor de estoque","Nível para nova encomenda","Nova encomenda em dias","Quantidade \nem nova encomenda","Descontinuado?"]
[null,{"$f":"IFERROR((Inventory_List_Table[[#This Row],[Quantidade \nem estoque]]<=Inventory_List_Table[[#This Row],[Nível para nova encomenda]])*(Inventory_List_Table[[#This Row],[Descontinuado?]]=\"\")*RealceValor,0)","v":1},"IN0001","Item 1","Descr 1",{"v":51,"d":"R$ 51.00"},25,{"$f":"Inventory_List_Table[[#This Row],[Preço unitário]]*Inventory_List_Table[[#This Row],[Quantidade \nem estoque]]","v":{"v":1275,"d":"R$ 1,275"}},29,13,50]
[null,{"$f":"IFERROR((Inventory_List_Table[[#This Row],[Quantidade \nem estoque]]<=Inventory_List_Table[[#This Row],[Nível para nova encomenda]])*(Inventory_List_Table[[#This Row],[Descontinuado?]]=\"\")*RealceValor,0)","v":1},"IN0002","Item 2","Descr 2",{"v":93,"d":"R$ 93.00"},132,{"$f":"Inventory_List_Table[[#This Row],[Preço unitário]]*Inventory_List_Table[[#This Row],[Quantidade \nem estoque]]","v":{"v":12276,"d":"R$ 12,276"}},231,4,50]
[null,{"$f":"IFERROR((Inventory_List_Table[[#This Row],[Quantidade \nem estoque]]<=Inventory_List_Table[[#This Row],[Nível para nova encomenda]])*(Inventory_List_Table[[#This Row],[Descontinuado?]]=\"\")*RealceValor,0)","v":0},"IN0003","Item 3","Descr 3",{"v":57,"d":"R$ 57.00"},151,{"$f":"Inventory_List_Table[[#This Row],[Preço unitário]]*Inventory_List_Table[[#This Row],[Quantidade \nem estoque]]","v":{"v":8607,"d":"R$ 8,607"}},114,11,150]
[null,{"$f":"IFERROR((Inventory_List_Table[[#This Row],[Quantidade \nem estoque]]<=Inventory_List_Table[[#This Row],[Nível para nova encomenda]])*(Inventory_List_Table[[#This Row],[Descontinuado?]]=\"\")*RealceValor,0)","v":0},"IN0004","Item 4","Descr 4",{"v":19,"d":"R$ 19.00"},186,{"$f":"Inventory_List_Table[[#This Row],[Preço unitário]]*Inventory_List_Table[[#This Row],[Quantidade \nem estoque]]","v":{"v":3534,"d":"R$ 3,534"}},158,6,50]
[null,{"$f":"IFERROR((Inventory_List_Table[[#This Row],[Quantidade \nem estoque]]<=Inventory_List_Table[[#This Row],[Nível para nova encomenda]])*(Inventory_List_Table[[#This Row],[Descontinuado?]]=\"\")*RealceValor,0)","v":0},"IN0005","Item 5","Descr 5",{"v":75,"d":"R$ 75.00"},62,{"$f":"Inventory_List_Table[[#This Row],[Preço unitário]]*Inventory_List_Table[[#This Row],[Quantidade \nem estoque]]","v":{"v":4650,"d":"R$ 4,650"}},39,12,50]
[null,{"$f":"IFERROR((Inventory_List_Table[[#This Row],[Quantidade \nem estoque]]<=Inventory_List_Table[[#This Row],[Nível para nova encomenda]])*(Inventory_List_Table[[#This Row],[Descontinuado?]]=\"\")*RealceValor,0)","v":1},"IN0006","Item 6","Descr 6",{"v":11,"d":"R$ 11.00"},5,{"$f":"Inventory_List_Table[[#This Row],[Preço unitário]]*Inventory_List_Table[[#This Row],[Quantidade \nem estoque]]","v":{"v":55,"d":"R$ 55"}},9,13,150]
[null,{"$f":"IFERROR((Inventory_List_Table[[#This Row],[Quantidade \nem estoque]]<=Inventory_List_Table[[#This Row],[Nível para nova encomenda]])*(Inventory_List_Table[[#This Row],[Descontinuado?]]=\"\")*RealceValor,0)","v":0},"IN0007","Item 7","Descr 7",{"v":56,"d":"R$ 56.00"},58,{"$f":"Inventory_List_Table[[#This Row],[Preço unitário]]*Inventory_List_Table[[#This Row],[Quantidade \nem estoque]]","v":{"v":3248,"d":"R$ 3,248"}},109,7,100,"Sim"]
[null,{"$f":"IFERROR((Inventory_List_Table[[#This Row],[Quantidade \nem estoque]]<=Inventory_List_Table[[#This Row],[Nível para nova encomenda]])*(Inventory_List_Table[[#This Row],[Descontinuado?]]=\"\")*RealceValor,0)","v":1},"IN0008","Item 8","Descr 8",{"v":38,"d":"R$ 38.00"},101,{"$f":"Inventory_List_Table[[#This Row],[Preço unitário]]*Inventory_List_Table[[#This Row],[Quantidade \nem estoque]]","v":{"v":3838,"d":"R$ 3,838"}},162,3,100]
[null,{"$f":"IFERROR((Inventory_List_Table[[#This Row],[Quantidade \nem estoque]]<=Inventory_List_Table[[#This Row],[Nível para nova encomenda]])*(Inventory_List_Table[[#This Row],[Descontinuado?]]=\"\")*RealceValor,0)","v":0},"IN0009","Item 9","Descr 9",{"v":59,"d":"R$ 59.00"},122,{"$f":"Inventory_List_Table[[#This Row],[Preço unitário]]*Inventory_List_Table[[#This Row],[Quantidade \nem estoque]]","v":{"v":7198,"d":"R$ 7,198"}},82,3,150]
[null,{"$f":"IFERROR((Inventory_List_Table[[#This Row],[Quantidade \nem estoque]]<=Inventory_List_Table[[#This Row],[Nível para nova encomenda]])*(Inventory_List_Table[[#This Row],[Descontinuado?]]=\"\")*RealceValor,0)","v":1},"IN0010","Item 10","Descr 10",{"v":50,"d":"R$ 50.00"},175,{"$f":"Inventory_List_Table[[#This Row],[Preço unitário]]*Inventory_List_Table[[#This Row],[Quantidade \nem estoque]]","v":{"v":8750,"d":"R$ 8,750"}},283,8,150]
[null,{"$f":"IFERROR((Inventory_List_Table[[#This Row],[Quantidade \nem estoque]]<=Inventory_List_Table[[#This Row],[Nível para nova encomenda]])*(Inventory_List_Table[[#This Row],[Descontinuado?]]=\"\")*RealceValor,0)","v":1},"IN0011","Item 11","Descr 11",{"v":59,"d":"R$ 59.00"},176,{"$f":"Inventory_List_Table[[#This Row],[Preço unitário]]*Inventory_List_Table[[#This Row],[Quantidade \nem estoque]]","v":{"v":10384,"d":"R$ 10,384"}},229,1,100]
[null,{"$f":"IFERROR((Inventory_List_Table[[#This Row],[Quantidade \nem estoque]]<=Inventory_List_Table[[#This Row],[Nível para nova encomenda]])*(Inventory_List_Table[[#This Row],[Descontinuado?]]=\"\")*RealceValor,0)","v":1},"IN0012","Item 12","Descr 12",{"v":18,"d":"R$ 18.00"},22,{"$f":"Inventory_List_Table[[#This Row],[Preço unitário]]*Inventory_List_Table[[#This Row],[Quantidade \nem estoque]]","v":{"v":396,"d":"R$ 396"}},36,12,50]
[null,{"$f":"IFERROR((Inventory_List_Table[[#This Row],[Quantidade \nem estoque]]<=Inventory_List_Table[[#This Row],[Nível para nova encomenda]])*(Inventory_List_Table[[#This Row],[Descontinuado?]]=\"\")*RealceValor,0)","v":1},"IN0013","Item 13","Descr 13",{"v":26,"d":"R$ 26.00"},72,{"$f":"Inventory_List_Table[[#This Row],[Preço unitário]]*Inventory_List_Table[[#This Row],[Quantidade \nem estoque]]","v":{"v":1872,"d":"R$ 1,872"}},102,9,100]
[null,{"$f":"IFERROR((Inventory_List_Table[[#This Row],[Quantidade \nem estoque]]<=Inventory_List_Table[[#This Row],[Nível para nova encomenda]])*(Inventory_List_Table[[#This Row],[Descontinuado?]]=\"\")*RealceValor,0)","v":1},"IN0014","Item 14","Descr 14",{"v":42,"d":"R$ 42.00"},62,{"$f":"Inventory_List_Table[[#This Row],[Preço unitário]]*Inventory_List_Table[[#This Row],[Quantidade \nem estoque]]","v":{"v":2604,"d":"R$ 2,604"}},83,2,100]
[null,{"$f":"IFERROR((Inventory_List_Table[[#This Row],[Quantidade \nem estoque]]<=Inventory_List_Table[[#This Row],[Nível para nova encomenda]])*(Inventory_List_Table[[#This Row],[Descontinuado?]]=\"\")*RealceValor,0)","v":0},"IN0015","Item 15","Descr 15",{"v":32,"d":"R$ 32.00"},46,{"$f":"Inventory_List_Table[[#This Row],[Preço unitário]]*Inventory_List_Table[[#This Row],[Quantidade \nem estoque]]","v":{"v":1472,"d":"R$ 1,472"}},23,15,50]
[null,{"$f":"IFERROR((Inventory_List_Table[[#This Row],[Quantidade \nem estoque]]<=Inventory_List_Table[[#This Row],[Nível para nova encomenda]])*(Inventory_List_Table[[#This Row],[Descontinuado?]]=\"\")*RealceValor,0)","v":1},"IN0016","Item 16","Descr 16",{"v":90,"d":"R$ 90.00"},96,{"$f":"Inventory_List_Table[[#This Row],[Preço unitário]]*Inventory_List_Table[[#This Row],[Quantidade \nem estoque]]","v":{"v":8640,"d":"R$ 8,640"}},180,3,50]
[null,{"$f":"IFERROR((Inventory_List_Table[[#This Row],[Quantidade \nem estoque]]<=Inventory_List_Table[[#This Row],[Nível para nova encomenda]])*(Inventory_List_Table[[#This Row],[Descontinuado?]]=\"\")*RealceValor,0)","v":0},"IN0017","Item 17","Descr 17",{"v":97,"d":"R$ 97.00"},57,{"$f":"Inventory_List_Table[[#This Row],[Preço unitário]]*Inventory_List_Table[[#This Row],[Quantidade \nem estoque]]","v":{"v":5529,"d":"R$ 5,529"}},98,12,50,"Sim"]
[null,{"$f":"IFERROR((Inventory_List_Table[[#This Row],[Quantidade \nem estoque]]<=Inventory_List_Table[[#This Row],[Nível para nova encomenda]])*(Inventory_List_Table[[#This Row],[Descontinuado?]]=\"\")*RealceValor,0)","v":1},"IN0018","Item 18","Descr 18",{"v":12,"d":"R$ 12.00"},6,{"$f":"Inventory_List_Table[[#This Row],[Preço unitário]]*Inventory_List_Table[[#This Row],[Quantidade \nem estoque]]","v":{"v":72,"d":"R$ 72"}},7,13,50]
[null,{"$f":"IFERROR((Inventory_List_Table[[#This Row],[Quantidade \nem estoque]]<=Inventory_List_Table[[#This Row],[Nível para nova encomenda]])*(Inventory_List_Table[[#This Row],[Descontinuado?]]=\"\")*RealceValor,0)","v":1},"IN0019","Item 19","Descr 19",{"v":82,"d":"R$ 82.00"},143,{"$f":"Inventory_List_Table[[#This Row],[Preço unitário]]*Inventory_List_Table[[#This Row],[Quantidade \nem estoque]]","v":{"v":11726,"d":"R$ 11,726"}},164,12,150]
[null,{"$f":"IFERROR((Inventory_List_Table[[#This Row],[Quantidade \nem estoque]]<=Inventory_List_Table[[#This Row],[Nível para nova encomenda]])*(Inventory_List_Table[[#This Row],[Descontinuado?]]=\"\")*RealceValor,0)","v":0},"IN0020","Item 20","Descr 20",{"v":16,"d":"R$ 16.00"},124,{"$f":"Inventory_List_Table[[#This Row],[Preço unitário]]*Inventory_List_Table[[#This Row],[Quantidade \nem estoque]]","v":{"v":1984,"d":"R$ 1,984"}},113,14,50]
[null,{"$f":"IFERROR((Inventory_List_Table[[#This Row],[Quantidade \nem estoque]]<=Inventory_List_Table[[#This Row],[Nível para nova encomenda]])*(Inventory_List_Table[[#This Row],[Descontinuado?]]=\"\")*RealceValor,0)","v":0},"IN0021","Item 21","Descr 21",{"v":19,"d":"R$ 19.00"},112,{"$f":"Inventory_List_Table[[#This Row],[Preço unitário]]*Inventory_List_Table[[#This Row],[Quantidade \nem estoque]]","v":{"v":2128,"d":"R$ 2,128"}},75,11,50]
[null,{"$f":"IFERROR((Inventory_List_Table[[#This Row],[Quantidade \nem estoque]]<=Inventory_List_Table[[#This Row],[Nível para nova encomenda]])*(Inventory_List_Table[[#This Row],[Descontinuado?]]=\"\")*RealceValor,0)","v":0},"IN0022","Item 22","Descr 22",{"v":24,"d":"R$ 24.00"},182,{"$f":"Inventory_List_Table[[#This Row],[Preço unitário]]*Inventory_List_Table[[#This Row],[Quantidade \nem estoque]]","v":{"v":4368,"d":"R$ 4,368"}},132,15,150]
[null,{"$f":"IFERROR((Inventory_List_Table[[#This Row],[Quantidade \nem estoque]]<=Inventory_List_Table[[#This Row],[Nível para nova encomenda]])*(Inventory_List_Table[[#This Row],[Descontinuado?]]=\"\")*RealceValor,0)","v":0},"IN0023","Item 23","Descr 23",{"v":29,"d":"R$ 29.00"},106,{"$f":"Inventory_List_Table[[#This Row],[Preço unitário]]*Inventory_List_Table[[#This Row],[Quantidade \nem estoque]]","v":{"v":3074,"d":"R$ 3,074"}},142,1,150,"Sim"]
[null,{"$f":"IFERROR((Inventory_List_Table[[#This Row],[Quantidade \nem estoque]]<=Inventory_List_Table[[#This Row],[Nível para nova encomenda]])*(Inventory_List_Table[[#This Row],[Descontinuado?]]=\"\")*RealceValor,0)","v":0},"IN0024","Item 24","Descr 24",{"v":75,"d":"R$ 75.00"},173,{"$f":"Inventory_List_Table[[#This Row],[Preço unitário]]*Inventory_List_Table[[#This Row],[Quantidade \nem estoque]]","v":{"v":12975,"d":"R$ 12,975"}},127,9,100]
[null,{"$f":"IFERROR((Inventory_List_Table[[#This Row],[Quantidade \nem estoque]]<=Inventory_List_Table[[#This Row],[Nível para nova encomenda]])*(Inventory_List_Table[[#This Row],[Descontinuado?]]=\"\")*RealceValor,0)","v":0},"IN0025","Item 25","Descr 25",{"v":14,"d":"R$ 14.00"},28,{"$f":"Inventory_List_Table[[#This Row],[Preço unitário]]*Inventory_List_Table[[#This Row],[Quantidade \nem estoque]]","v":{"v":392,"d":"R$ 392"}},21,8,50]